fUSD/lending_fUSD_20240611
["ID","MTS","AMOUNT","RATE_DAILY","PERIOD"]
[329089803,1718098240831,-152.80736611,0.00026918,2]
[329089804,1718098240843,-206.985,0.00026929,2]
[329089805,1718098240855,-500.0,0.00026986,2]
[329089806,1718098240867,-153.63169951,0.00026996,2]
[329089807,1718098240880,-1300.0,0.00027,2]
[329089808,1718098240892,-218.0,0.00027,2]
[329089809,1718098240906,-200.0,0.00027,2]
[329089810,1718098240918,-1830.98831608,0.00027023,3]
[329089811,1718098240929,-159.51924388,0.00027026,2]
[329089812,1718098240940,-166.66666668,0.00027045,2]
[329089813,1718098240958,-159.51924388,0.00027048,2]
[329089814,1718098240970,-152.80736611,0.0002707,2]
[329089815,1718098240981,-2465.151,0.00027123,4]
[329089816,1718098240992,-2465.151,0.00027123,4]
[329089817,1718098241003,-2465.151,0.00027123,4]
[329089818,1718098241014,-2465.151,0.00027123,4]
[329089819,1718098241024,-2465.151,0.00027123,4]
[329089820,1718098241036,-851.06,0.00027123,2]
[329089821,1718098241047,-417.53,0.00027123,2]
[329089822,1718098241057,-851.06,0.00027123,2]
[329089823,1718098241068,-417.53,0.00027123,2]
[329089824,1718098241080,-417.53,0.00027123,2]
[329089825,1718098241091,-851.06,0.00027123,2]
[329089826,1718098241102,-417.53,0.00027123,2]
[329089827,1718098241114,-851.06,0.00027123,2]
[329089828,1718098241125,-417.53,0.00027123,2]
[329089829,1718098241136,-851.06,0.00027123,2]
[329089830,1718098241147,-687.68,0.00027123,2]
[329089831,1718098241158,-417.53,0.00027123,2]
[329089832,1718098241169,-417.53,0.00027123,2]
[329089833,1718098241180,-414.95,0.00027123,2]
[329089834,1718098241193,-150.0,0.00027133,2]
[329089835,1718098241207,-150.0,0.0002714,2]
[329089836,1718098241218,-150.0,0.00027143,2]
[329089837,1718098241229,-150.0,0.00027143,2]
[329089838,1718098241239,-150.0,0.00027143,2]
[329089839,1718098241252,-150.0,0.00027144,2]
[329089840,1718098241262,-153.63169951,0.00027148,2]
[329089841,1718098241272,-154.87010503,0.00027151,2]
[329089842,1718098241283,-150.0,0.00027158,2]
[329089843,1718098241294,-150.0,0.00027163,2]
[329089844,1718098241306,-500.0,0.00027176,2]
[329089845,1718098241319,-200.0,0.00027176,2]
[329089846,1718098241332,-200.0,0.00027177,2]
[329089847,1718098241343,-200.0,0.00027177,2]
[329089848,1718098241354,-500.0,0.00027177,2]
[329089849,1718098241366,-500.0,0.00027177,2]
[329089850,1718098241376,-200.0,0.00027177,2]
[329089851,1718098241387,-150.0,0.00027177,2]
[329089852,1718098241398,-150.0,0.00027181,2]
[329089853,1718098241411,-12222.38602274,0.00027181,2]
[329089854,1718098241424,-150.0,0.00027187,2]
[329089855,1718098241438,-150.0,0.00027191,2]
[329089856,1718098241454,-150.0,0.00027193,2]
[329089857,1718098241465,-1603.75768415,0.00027195,2]
[329089858,1718098241476,-152.80736611,0.00027195,2]
[329089859,1718098241488,-486.3734,0.00027197,2]
[329089860,1718098241499,-164.7397,0.00027197,2]
[329089861,1718098241511,-150.0,0.00027197,2]
[329089863,1718098241522,-228.87976901,0.00027201,2]
[329089865,1718098241534,-150.0,0.00027219,2]
[329089867,1718098241545,-150.0,0.00027223,2]
[329089869,1718098241557,-150.0,0.00027227,2]
[329089871,1718098241569,-150.0,0.00027229,2]
[329089873,1718098241580,-150.0,0.00027242,2]
[329089874,1718098241592,-150.0,0.00027242,2]
[329089876,1718098241603,-150.0,0.00027246,2]
[329089878,1718098241615,-150.0,0.00027254,2]
[329089880,1718098241625,-150.0,0.00027259,2]
[329089882,1718098241636,-150.0,0.00027262,2]
[329089884,1718098241646,-150.0,0.00027276,2]
[329089886,1718098241657,-5305.8187,0.00027277,2]
[329089888,1718098241668,-176.74360146,0.00027278,2]
[329089890,1718098241680,-150.0,0.00027281,2]
[329089892,1718098241694,-150.0,0.00027281,2]
[329089894,1718098241705,-150.0,0.00027289,2]
[329089896,1718098241716,-150.0,0.00027291,2]
[329089898,1718098241726,-544.52586207,0.00027295,2]
[329089900,1718098241737,-155.0,0.00027295,2]
[329089902,1718098241748,-531.58845466,0.00027295,2]
[329089904,1718098241759,-5584.2730595,0.00027295,2]
[329089906,1718098241770,-407.68898763,0.00027295,2]
[329089908,1718098241781,-155.0,0.00027295,2]
[329089910,1718098241793,-157.1591566,0.00027296,2]
[329089912,1718098241804,-4687.68253494,0.00027296,2]
[329089914,1718098241815,-150.0,0.00027296,2]
[329089916,1718098241826,-7500.0,0.00027296,2]
[329089918,1718098241837,-50950.5986,0.00027297,2]
[329089920,1718098241848,-63995.3667,0.00027297,2]
[329089922,1718098241859,-4487.5896,0.00027297,2]
[329089924,1718098241870,-215.0,0.00027297,2]
[329089926,1718098241882,-6091.01749322,0.00027297,2]
[329089928,1718098241893,-173.69961228,0.00027297,2]
[329089930,1718098241904,-321.98585656,0.00027297,2]
[329089932,1718098241917,-2029.88005738,0.00027297,2]
[329089934,1718098241933,-191.50157021,0.00027297,5]
[329089936,1718098241952,-489.0,0.000273,11]
[329089938,1718098241967,-325.0,0.000273,2]
[329089940,1718098241979,-150.0,0.000273,5]
[329089942,1718098241991,-150.0,0.000273,5]
[329089944,1718098242004,-150.0,0.00027325,2]
[329089946,1718098242016,-150.0,0.00027325,2]
[329089948,1718098242028,-215.84891247,0.0002733,2]
[329089950,1718098242039,-151.0,0.00027333,4]
[329089952,1718098242050,-150.0,0.00027349,2]
[329089954,1718098242062,-12222.38602273,0.00027358,2]
[329089956,1718098242073,-150.0,0.0002736,2]
[329089958,1718098242087,-395.0,0.00027367,15]
[329089960,1718098242100,-731.0,0.00027367,15]
[329089962,1718098242112,-150.0,0.00027367,2]
[329089964,1718098242124,-150.0,0.00027371,2]
[329089966,1718098242136,-1603.75768409,0.00027374,2]
[329089968,1718098242149,-150.0,0.00027374,2]
[329089970,1718098242160,-216.8,0.00027377,15]
[329089972,1718098242172,-395.0,0.00027377,15]
[329089974,1718098242184,-731.0,0.00027377,15]
[329089976,1718098242201,-150.0,0.00027378,2]
[329089978,1718098242213,-150.0,0.00027379,2]
[329089980,1718098242224,-152.80736611,0.00027381,2]
[329089982,1718098242235,-150.0,0.00027383,2]
[329089984,1718098242247,-152.84,0.00027387,2]
[329089986,1718098242257,-150.5,0.00027387,15]
[329089988,1718098242269,-395.0,0.00027387,15]
[329089990,1718098242281,-731.0,0.00027387,15]
[329089992,1718098242292,-1807.6564032,0.0002739,2]
[329089994,1718098242304,-245.77574483,0.00027395,2]
[329089996,1718098242316,-645.71954176,0.00027395,2]
[329089998,1718098242333,-1052.98663514,0.00027395,2]
[329090000,1718098242344,-241.58417095,0.00027395,2]
[329090002,1718098242356,-330.15507371,0.00027395,2]
[329090004,1718098242367,-3065.39010227,0.00027395,2]
[329090006,1718098242378,-863.50817945,0.00027395,3]
[329090008,1718098242389,-208.87102398,0.00027395,2]
[329090010,1718098242401,-150.0,0.00027395,10]
[329090012,1718098242414,-150.0,0.00027395,10]
[329090014,1718098242433,-150.0,0.00027395,10]
[329090016,1718098242450,-150.0,0.00027395,10]
[329090018,1718098242461,-150.0,0.00027395,10]
[329090020,1718098242474,-150.0,0.00027396,10]
[329090022,1718098242486,-150.0,0.00027396,10]
[329090024,1718098242497,-150.0,0.00027396,10]
[329090026,1718098242507,-150.0,0.00027396,10]
[329090028,1718098242517,-150.0,0.00027396,10]
[329090030,1718098242528,-282.78360704,0.00027396,10]
[329090032,1718098242539,-536.0,0.00027396,2]
[329090034,1718098242549,-30284.95826883,0.00027397,13]
[329090049,1718098242713,-755.58943814,0.00027397,13]
[329090075,1718098243001,-959.39222354,0.00027397,13]
[329090077,1718098243014,-1657.92075126,0.00027397,13]
[329090128,1718098243901,-1001.18899325,0.00027395,2]
[329090129,1718098244097,-2159.72184484,0.00027395,2]
[329090130,1718098244108,-8333.77085478,0.00027397,13]
[329090138,1718098249114,-193.18760792,0.00027394,2]
[329090139,1718098249125,-36993.55240976,0.00027397,13]
[329090140,1718098249164,-353.83,0.00027397,13]
[329090141,1718098249176,-673.58,0.00027397,13]
[329090161,1718098259359,6739.0,0.00019725,2]
[329090162,1718098260640,65233.04507368,0.00019725,2]
[329090175,1718098353177,185.23,0.00026045,120]
[329090176,1718098382721,155.0,0.00017259,2]
[329090181,1718098424031,534988.57490842,0.00014,2]
[329090202,1718099094621,500.0,0.00025,30]
[329090203,1718099157183,-204.99679615,0.00013281,2]
[329090204,1718099157208,-5.69460345,0.00013281,2]
[329090205,1718099226139,-3066.55001275,0.00013278,2]
[329090206,1718099226163,-193.18760792,0.00013278,2]
[329090207,1718099226188,-829.58012706,0.00013279,2]
[329090208,1718099227132,-455.45918571,0.00013279,2]
[329090209,1718099238113,-340.48130347,0.00013279,2]
[329090210,1718099238139,-300.0,0.00013287,2]
[329090211,1718099238163,-2385.88993899,0.00013288,2]
[329090212,1718099247170,-168.38494077,0.00013288,2]
[329090241,1718099435668,-193.18760792,0.00013197,2]
[329090242,1718099435679,-158.9647594,0.00013198,2]
[329090243,1718099435691,-3010.53119973,0.00013287,2]
[329090244,1718099436020,-2573.74185977,0.00013287,2]
[329090245,1718099436030,-300.0,0.00013287,2]
[329090246,1718099436040,-24952.96471232,0.00013288,2]
[329090247,1718099436604,-10087.65,0.00013288,2]
[329090248,1718099437073,-162115.66424263,0.00013288,2]
[329090249,1718099437084,-932.19772724,0.00013298,2]
[329090250,1718099437095,-780.42980277,0.00013438,2]
[329090251,1718099437106,-150.0,0.00013699,2]
[329090252,1718099437116,-150.0,0.00013719,2]
[329090253,1718099437127,-2608.61583779,0.0001372,2]
[329090255,1718099437138,-254.17838685,0.00013858,2]
[329090257,1718099437149,-486.3734,0.000139,2]
[329090259,1718099437159,-180.83664652,0.000139,2]
[329090261,1718099437170,-5305.8187,0.000139,2]
[329090262,1718099437181,-499.99,0.000139,2]
[329090263,1718099437191,-321.98585656,0.000139,2]
[329090264,1718099437441,-1220.67,0.0001399,2]
[329090265,1718099437453,-469.93,0.0001399,2]
[329090266,1718099437463,-1806.68,0.0001399,2]
[329090267,1718099437473,-5141.18,0.0001399,2]
[329090268,1718099437484,-152.84,0.0001399,2]
[329090269,1718099437496,-155.0,0.00013998,2]
[329090270,1718099437507,-407.68898763,0.00013998,2]
[329090271,1718099437518,-544.52586207,0.00013998,2]
[329090272,1718099437531,-155.0,0.00013998,2]
[329090273,1718099437542,-241.58417095,0.00013998,2]
[329090274,1718099437553,-157.1591566,0.00013998,2]
[329090275,1718099437564,-168.31981646,0.00013998,2]
[329090276,1718099437574,-7542.42300852,0.00013998,2]
[329090277,1718099437586,-1052.98663514,0.00013998,2]
[329090278,1718099437596,-327.03263673,0.00013998,2]
[329090279,1718099437607,-645.71954176,0.00013998,2]
[329090280,1718099437618,-1070.57370977,0.00013998,2]
[329090281,1718099437629,-531.58845466,0.00013998,2]
[329090282,1718099437640,-155.0,0.00013998,2]
[329090283,1718099437651,-15910.0,0.00013998,2]
[329090284,1718099437662,-2945.42862881,0.00013998,2]
[329090285,1718099437673,-155.0,0.00013998,2]
[329090286,1718099437684,-155.0,0.00013998,2]
[329090287,1718099437695,-188.47114271,0.00013998,2]
[329090288,1718099437706,-3063.23211443,0.00013998,2]
[329090289,1718099437717,-210.690383,0.00013998,2]
[329090290,1718099437733,-4687.68253494,0.00013999,2]
[329090291,1718099437744,-811734.84506074,0.00014,2]
[329090294,1718099438884,-717.77189,0.00014,2]
[329090295,1718099439053,-1113.10769976,0.00014,2]
[329090296,1718099439743,-34471.00817943,0.00014,2]
[329090297,1718099439885,-91958.57057704,0.00014,2]
[329090372,1718099440841,-882.22,0.00014,2]
[329090397,1718099441201,-184063.33207148,0.00014,2]
[329090398,1718099441212,-155.0,0.00014,2]
[329090400,1718099441225,-299.79059261,0.00014,2]
[329090402,1718099441237,-367.12,0.00014301,2]
[329090405,1718099441257,-420.0,0.00014567,2]
[329090407,1718099441278,-648.26,0.00014927,2]
[329090409,1718099441292,-134697.74186161,0.00015,2]
[329090411,1718099441310,-23890.0,0.00015148,2]
[329090413,1718099441328,-96.64432779,0.00015568,2]
[329090452,1718099441830,-500.43567221,0.00015568,2]
[329090454,1718099441844,-250.0,0.00015648,2]
[329090456,1718099441862,-587.0,0.00015971,2]
[329090458,1718099441885,-192.0,0.00016208,2]
[329090461,1718099441902,-250.0,0.00016515,2]
[329090463,1718099441919,-367.12,0.00016565,2]
[329090465,1718099441934,-823.0,0.00017509,2]
[329090467,1718099441954,-192.0,0.00018235,2]
[329090470,1718099441970,-419.23021566,0.00018308,2]
[329090472,1718099441987,-177.84978434,0.00018308,2]
[329090474,1718099442003,-172.32,0.00018361,2]
[329090476,1718099442019,-500.0,0.000185,2]
[329090479,1718099442038,-367.12,0.00018829,2]
[329090481,1718099442052,-941.97309292,0.00019,2]
[329090490,1718099442159,-5797.02690708,0.00019,2]
[329090492,1718099442175,-197.82781109,0.00019178,2]
[329090494,1718099442190,-500.0,0.00019178,2]
[329090496,1718099442206,-535.63715836,0.00019178,2]
[329090498,1718099442222,-500.0,0.00019178,2]
[329090500,1718099442237,-521.55179444,0.00019178,2]
[329090502,1718099442252,-500.0,0.00019178,2]
[329090505,1718099442270,-816.0,0.00019196,2]
[329090507,1718099442286,-1000.0,0.00019724,2]
[329090508,1718099442302,-257.9877105,0.0002,2]
[329090509,1718099442319,-482.89383249,0.0002,2]
[329090510,1718099442334,-863.50817945,0.0002,2]
[329090511,1718099442350,-192.0,0.00020261,2]
[329090512,1718099442365,-648.26,0.00020898,2]
[329090513,1718099442379,-597.08,0.00021047,2]
[329090514,1718099442393,-367.12,0.00021093,2]
[329090515,1718099442407,-500.0,0.00021506,2]
[329090516,1718099442423,-500.0,0.00021506,2]
[329090518,1718099442437,-700.0,0.00021506,2]
[329090520,1718099442454,-808.0,0.00021785,2]
[329090523,1718099442470,-250.0,0.00021918,2]
[329090525,1718099442484,-700.0,0.00022054,2]
[329090527,1718099442499,-192.0,0.00022287,2]
[329090529,1718099442513,-500.0,0.00022602,2]
[329090532,1718099442527,-500.0,0.00022602,2]
[329090534,1718099442541,-500.0,0.00022602,2]
[329090536,1718099442555,-700.0,0.00022602,2]
[329090539,1718099442570,-500.0,0.0002315,2]
[329090541,1718099442584,-700.0,0.0002315,2]
[329090543,1718099442599,-367.12,0.00023357,2]
[329090546,1718099442614,-500.0,0.00023698,2]
[329090548,1718099442629,-500.0,0.00023698,2]
[329090551,1718099442644,-500.0,0.00023698,2]
[329090553,1718099442658,-700.0,0.00023698,2]
[329090555,1718099442673,-30479.51332791,0.00024,3]
[329090558,1718099442687,-10256.55211478,0.00024,15]
[329090561,1718099442718,-4706.39908602,0.00024,15]
[329090563,1718099442734,-700.0,0.00024246,2]
[329090566,1718099442749,-192.0,0.00024313,2]
[329090568,1718099442765,-306.12,0.00024384,2]
[329090570,1718099442782,-155.25,0.00024384,2]
[329090573,1718099442797,-808.0,0.00024508,2]
[329090575,1718099442815,-500.0,0.00024794,2]
[329090578,1718099442831,-500.0,0.00024794,2]
[329090580,1718099442845,-500.0,0.00024794,2]
[329090582,1718099442860,-13101.48648909,0.00024798,2]
[329090585,1718099442875,-13101.48648908,0.00024798,2]
[329090587,1718099442890,-13101.48648908,0.00024798,2]
[329090589,1718099442906,-13101.48648908,0.00024798,2]
[329090592,1718099442929,-13101.48648908,0.00024798,2]
[329090594,1718099442944,-10280.50578903,0.00024798,2]
[329091402,1718099452730,-539.0803457,0.00013899,2]
[329091403,1718099452742,-161.51525947,0.00013899,2]
[329091404,1718099452754,-1277.06695007,0.00013899,2]
[329091405,1718099452766,-716.23940476,0.000139,2]
[329091406,1718099452780,-605.7,0.000139,2]
[329091407,1718099452887,-344.447979,0.000139,2]
[329091408,1718099452901,-1514.23611624,0.000139,2]
[329091409,1718099452912,-204.91568305,0.000139,2]
[329091410,1718099452924,-443.29297293,0.00019178,2]
[329091411,1718099452935,-456.70272482,0.00019178,2]
[329091412,1718099452946,-250.0,0.00024641,2]
[329091413,1718099452957,-2820.98070005,0.00024798,2]
[329091414,1718099452968,-295.0414027,0.00024798,2]
[329091415,1718099453043,-2868.95910655,0.00024798,2]
[329091416,1718099453061,-2953.82764984,0.00024798,2]
[329091417,1718099453075,-6983.65832999,0.00024798,2]
[329091418,1718099453086,-2887.43625756,0.00024799,2]
[329091419,1718099453097,-2887.43625749,0.00024799,2]
[329091420,1718099453116,-2887.43625749,0.00024799,2]
[329091421,1718099453133,-2887.43625749,0.00024799,2]
[329091422,1718099453144,-2887.43625749,0.00024799,2]
[329091423,1718099453155,-882.47631793,0.00024799,2]
[329091424,1718099453167,-333.15436569,0.00024799,2]
[329091425,1718099453194,-1671.80557387,0.00024799,2]
[329091426,1718099453205,-2887.43625749,0.00024799,2]
[329091427,1718099453216,-3509.59656864,0.00025,2]
[329091428,1718099453367,-1913.60066779,0.00025,2]
[329091433,1718099453409,-1676.92052825,0.00025,2]
[329091436,1718099453423,-2448.97318394,0.00025,2]
[329091445,1718099453515,-2176.24959874,0.00025,2]
[329091451,1718099453565,-1114.16225348,0.00025,2]
[329091453,1718099453579,-385.70038968,0.00025,2]
[329091455,1718099453593,-517.70657347,0.00025,2]
[329091457,1718099453613,-795.35339246,0.00025,2]
[329091460,1718099453646,-9449.16143108,0.00025,2]
[329091462,1718099453656,-9080.37554934,0.00025,7]
[329091463,1718099453667,-8928.61925588,0.00025,2]
[329091464,1718099453677,-929.09920929,0.00025,2]
[329091466,1718099453688,-245.77574483,0.00025,2]
[329091468,1718099453698,-1203.42195458,0.00025,2]
[329091471,1718099453713,-1250.0,0.00025,2]
[329091473,1718099453728,-3191.26451062,0.000251,2]
[329091475,1718099453739,-2887.43625749,0.00025229,2]
[329091477,1718099453751,-700.0,0.00025342,2]
[329091479,1718099453763,-13101.48648908,0.00025385,2]
[329091481,1718099453774,-367.12,0.00025621,2]
[329091483,1718099453786,-4950.87,0.00025653,2]
[329091486,1718099453798,-475.75710123,0.0002589,2]
[329091488,1718099453809,-500.0,0.0002589,2]
[329091490,1718099453820,-500.0,0.0002589,2]
[329091492,1718099453831,-2031.0,0.00026,2]
[329091494,1718099453841,-4053.1203069,0.00026,2]
[329091496,1718099453856,-23545.19643948,0.00026,5]
[329091498,1718099453866,-153.63169951,0.00026063,2]
[329091500,1718099453887,-164.82187079,0.000261,2]
[329091502,1718099453898,-166.66666667,0.00026149,2]
[329091504,1718099453908,-154.81295573,0.00026158,2]
[329091506,1718099453919,-165.31119981,0.00026215,2]
[329091508,1718099453929,-232.29592045,0.00026215,2]
[329091511,1718099453940,-159.1122753,0.00026265,2]
[329091513,1718099453950,-215.84891247,0.00026269,2]
[329091514,1718099453960,-166.66666668,0.0002627,2]
[329091516,1718099453971,-2000.0,0.00026301,3]
[329091518,1718099453981,-152.35304169,0.0002638,2]
[329091521,1718099453993,-700.0,0.00026438,2]
[329091523,1718099454003,-155.8954267,0.00026459,2]
[329091525,1718099454014,-151.0,0.00026464,4]
[329091527,1718099454025,-1316.82844688,0.0002655,15]
[329091529,1718099454036,-159.1122753,0.00026581,2]
[329091531,1718099454047,-152.35304169,0.00026597,2]
[329091533,1718099454058,-2057.6267458,0.000266,2]
[329091535,1718099454069,-155.8954267,0.00026649,2]
[329091537,1718099454079,-669.504,0.00026683,2]
[329091539,1718099454091,-165.0,0.00026683,2]
[329091541,1718099454101,-1572.67,0.00026683,2]
[329091543,1718099454112,-3175.0,0.00026683,2]
[329091545,1718099454123,-1306.0,0.00026683,2]
[329091547,1718099454135,-206.985,0.00026683,2]
[329091549,1718099454146,-1573.0,0.00026683,2]
[329091551,1718099454157,-290.0,0.00026683,2]
[329091553,1718099454169,-298.388,0.00026683,2]
[329091555,1718099454179,-151.0,0.00026683,2]
[329091557,1718099454190,-5783.0,0.00026683,2]
[329091559,1718099454200,-1194.0,0.00026683,2]
[329091561,1718099454211,-197.271,0.00026683,2]
[329091562,1718099454222,-38070.0,0.00026683,2]
[329091563,1718099454233,-5156.0,0.00026683,2]
[329091564,1718099454244,-150.482,0.00026683,2]
[329091565,1718099454254,-150.178,0.00026683,2]
[329091566,1718099454265,-238.609,0.00026683,2]
[329091567,1718099454276,-153.63169951,0.00026733,2]
[329091568,1718099454287,-152.35304169,0.00026772,2]
[329091569,1718099454298,-154.83900616,0.00026783,2]
[329091570,1718099454309,-152.35304169,0.00026831,2]
[329091571,1718099454319,-164.73197819,0.00026848,2]
[329091572,1718099454330,-3368.40285418,0.00026849,2]
[329091573,1718099454341,-154.87010503,0.00026918,2]
[329091574,1718099454354,-232.29592045,0.00026919,2]
[329091575,1718099454364,-2887.43625749,0.00026948,2]
[329091576,1718099454375,-154.81295573,0.00026949,2]
[329091577,1718099454386,-6299.47966101,0.00026978,7]
[329091578,1718099454396,-500.0,0.00026986,2]
[329091579,1718099454408,-500.0,0.00026986,2]
[329091580,1718099454418,-250.19104844,0.00027,2]
[329091581,1718099454429,-1300.0,0.00027,2]
[329091582,1718099454440,-200.0,0.00027,2]
[329091583,1718099454451,-151.0,0.00027026,7]
[329091584,1718099454462,-151.0,0.00027026,7]
[329091585,1718099454473,-5232.849128,0.00027026,7]
[329091586,1718099454484,-186.656497,0.00027026,7]
[329091587,1718099454495,-5232.849128,0.00027026,7]
[329091588,1718099454506,-151.0,0.00027026,7]
[329091589,1718099454518,-13101.48648908,0.00027026,2]
[329091590,1718099454529,-152.35304169,0.00027036,2]
[329091591,1718099454540,-154.87010503,0.00027043,2]
[329091592,1718099454550,-232.29592045,0.00027105,2]
[329091593,1718099454561,-382.77972,0.0002712,2]
[329091594,1718099454571,-150.0,0.00027122,2]
[329091595,1718099454582,-2465.151,0.00027123,4]
[329091596,1718099454594,-2465.151,0.00027123,4]
[329091597,1718099454606,-2465.151,0.00027123,4]
[329091598,1718099454618,-2465.151,0.00027123,4]
[329091599,1718099454630,-2465.151,0.00027123,4]
[329091600,1718099454641,-150.0,0.00027126,2]
[329091601,1718099454652,-150.0,0.00027132,2]
[329091602,1718099454663,-150.0,0.00027158,2]
[329091603,1718099454674,-232.29592045,0.0002716,2]
[329091604,1718099454685,-150.0,0.00027163,2]
[329091605,1718099454696,-150.0,0.00027164,2]
[329091606,1718099454715,-150.0,0.00027172,2]
[329091607,1718099454729,-500.0,0.00027176,2]
[329091608,1718099454744,-200.0,0.00027177,2]
[329091609,1718099454756,-200.0,0.00027177,2]
[329091610,1718099454768,-500.0,0.00027177,2]
[329091611,1718099454779,-200.0,0.00027177,2]
[329091612,1718099454791,-153.63169951,0.00027183,2]
[329091613,1718099454803,-390.304093,0.000272,2]
[329091614,1718099454818,-150.0,0.000272,2]
[329091615,1718099454829,-150.0,0.00027202,2]
[329091616,1718099454841,-228.87976901,0.00027205,2]
[329091617,1718099454856,-150.0,0.00027206,2]
[329091618,1718099454868,-150.0,0.00027208,2]
[329091619,1718099454888,-155.11469151,0.00027216,2]
[329091620,1718099454900,-150.0,0.00027219,2]
[329091621,1718099454912,-150.0,0.00027225,2]
[329091622,1718099454925,-150.0,0.00027227,2]
[329091623,1718099454937,-808.0,0.00027231,2]
[329091624,1718099454948,-150.0,0.00027243,2]
[329091625,1718099454960,-150.0,0.00027244,2]
[329091626,1718099454972,-150.0,0.00027251,2]
[329091627,1718099454984,-150.0,0.00027261,2]
[329091628,1718099454996,-150.0,0.00027275,2]
[329091629,1718099455008,-150.0,0.00027276,2]
[329091630,1718099455019,-150.0,0.00027286,2]
[329091631,1718099455031,-150.0,0.0002729,2]
[329091632,1718099455042,-150.0,0.00027292,2]
[329091633,1718099455054,-150.0,0.00027294,2]
[329091634,1718099455066,-235.10641019,0.00027295,2]
[329091635,1718099455078,-193.18760792,0.00027295,2]
[329091636,1718099455089,-849.61213708,0.00027295,2]
[329091637,1718099455102,-150.0,0.00027296,2]
[329091638,1718099455114,-5860.4859,0.00027297,2]
[329091639,1718099455128,-167.75682034,0.00027297,2]
[329091640,1718099455140,-191.50157021,0.00027297,5]
[329091641,1718099455152,-260.54941844,0.00027297,2]
[329091642,1718099455164,-489.0,0.000273,11]
[329091643,1718099455176,-325.0,0.000273,2]
[329091644,1718099455188,-180.0,0.000273,11]
[329091645,1718099455199,-150.0,0.000273,5]
[329091646,1718099455211,-150.0,0.000273,5]
[329091647,1718099455223,-150.0,0.00027304,2]
[329091648,1718099455235,-150.0,0.00027306,2]
[329091649,1718099455247,-150.0,0.00027309,2]
[329091650,1718099455258,-150.0,0.0002732,2]
[329091651,1718099455268,-300.0,0.0002732,2]
[329091652,1718099455279,-150.0,0.00027324,2]
[329091653,1718099455290,-150.0,0.0002733,2]
[329091654,1718099455302,-150.0,0.00027333,2]
[329091655,1718099455313,-150.0,0.0002734,2]
[329091656,1718099455324,-150.0,0.00027341,2]
[329091657,1718099455335,-150.0,0.00027347,2]
[329091658,1718099455348,-150.0,0.00027347,2]
[329091659,1718099455362,-151.0,0.00027348,4]
[329091660,1718099455372,-150.0,0.00027362,2]
[329091661,1718099455383,-150.5,0.00027367,15]
[329091662,1718099455394,-565.0,0.00027367,15]
[329091663,1718099455405,-1045.0,0.00027367,15]
[329091664,1718099455415,-150.0,0.00027368,2]
[329091665,1718099455426,-565.0,0.00027377,15]
[329091667,1718099455438,-216.8,0.00027377,15]
[329091669,1718099455450,-1045.0,0.00027377,15]
[329091671,1718099455461,-150.0,0.00027385,2]
[329091673,1718099455472,-152.84,0.00027385,2]
[329091675,1718099455483,-565.0,0.00027387,15]
[329091678,1718099455495,-150.5,0.00027387,15]
[329091680,1718099455507,-1045.0,0.00027387,15]
[329091682,1718099455517,-501.9837979,0.00027389,2]
[329091683,1718099455529,-12780.5338427,0.00027389,2]
[329091685,1718099455540,-522.8683433,0.00027389,2]
[329091687,1718099455552,-511.1069723,0.00027389,2]
[329091689,1718099455562,-179.280745,0.0002739,7]
[329091691,1718099455573,-151.0,0.0002739,7]